Cogmind - Beta 9.6 @@@ ROGUE MODE // 2020.06.07 @ 08:26:30 Player: Ben'n'Dan Result: Self-destructed Performance ------------- Evolutions (1) 500 Regions Visited (2) 400 Robots Destroyed (4) 20 Value Destroyed (55) 55 Prototype IDs (0) 0 Alien Tech Used (0) 0 Bonus (0) 0 TOTAL SCORE: 975 Bonus ------- None Cogmind --------- Core Integrity 302/400 Matter 215/300 Energy 100/100 System Corruption 0% Temperature Cool (0) Movement Core (50) Location -9/Materials Parts ------- > --- POWER (1) -------- (None) > --- PROPULSION (3) --- (None) > --- UTILITY (3) ------ (None) > --- WEAPON (2) ------- (None) > --- INVENTORY (4) ---- Ion Engine Peak State ------------ > --- POWER ------------ Ion Engine > --- PROPULSION ------- Flight Unit Flight Unit > --- UTILITY ---------- (None) > --- WEAPON ----------- Light Assault Rifle > --- INVENTORY -------- Grenade Launcher [Rating: 4] Favorites ----------- Power Ion Engine Engine Ion Engine Propulsion Flight Unit Flight Unit Flight Unit Utility None Weapon Assault Rifle Ballistic Gun Assault Rifle Launcher Grenade Launcher Build | -11 -10 -9 ------- Run | Scr Mat Mat Slots Evolved 2 | . . 2 Power . | . . . Propulsion 1 | . . 1 Utility 1 | . . 1 Weapon . | . . . Parts Attached 6 | 1 . 5 Power 1 | . . 1 Engine 1 | . . 1 Core . | . . . Reactor . | . . . Propulsion 2 | . . 2 Treads . | . . . Leg . | . . . Wheel . | . . . Hover . | . . . Flight 2 | . . 2 Utility . | . . . Device . | . . . Storage . | . . . Processor . | . . . Hackware . | . . . Protection . | . . . Artifact . | . . . Weapon 3 | 1 . 2 Energy Gun . | . . . Energy Cannon . | . . . Ballistic Gun 2 | 1 . 1 Ballistic Cannon . | . . . Launcher 1 | . . 1 Special Weapon . | . . . Impact Weapon . | . . . Slashing Weapon . | . . . Piercing Weapon . | . . . Special Melee Weapon . | . . . Unidentified Prototypes . | . . . Parts Lost 5 | . . 5 Power . | . . . Propulsion 2 | . . 2 Utility . | . . . Weapon 3 | . . 3 Highest Loss Streak 4 | . . 4 Average Slot Usage (%) 21 | . 14 25 Engine 2 | . . 4 Flight 6 | . . 10 Ballistic Gun 11 | . 14 10 Naked Turns 3 | . . 3 Heaviest Build 6 | 2 2 6 Greatest Support 8 | 3 3 8 Greatest Overweight (x) . | . . . Average Overweight (x) . | . . . Largest Inventory Capacity 4 | 4 4 4 Average Capacity 4 | 4 4 4 Most Carried 2 | 1 2 2 Average Carried 1 | . 1 1 Final Capacity 4 | 4 4 4 Final Carried 2 | 1 2 1 Class Distribution -------------------- 100% | Mutant Dominant Class ---------------- Mutant | -10/Materials Mutant | -9/Materials Resources | -11 -10 -9 ----------- Run | Scr Mat Mat Matter Collected 223 | 210 3 10 Remotely . | . . . Salvage Created 65 | . 25 40 Parts 9 | . 2 7 Haulers Intercepted . | . . . Recyclers Shooed 1 | . . 1 Parts Field Recycled . | . . . Retrieved Matter . | . . . Parts Self-Destructed . | . . . Prevented . | . . . Kills | -11 -10 -9 ------- Run | Scr Mat Mat Combat Hostiles Destroyed 3 | . . 3 Guns 3 | . . 3 Classes Destroyed 2 | . 1 1 Builder 1 | . 1 . Swarmer 3 | . . 3 Best Kill Streak 2 | . 1 2 Combat Bots Only 2 | . . 2 Max Kills in Single Turn 1 | . 1 1 Gunslinging . | . . . Exploded . | . . . Melee . | . . . Uniques/NPCs Destroyed . | . . . Combat | -11 -10 -9 -------- Run | Scr Mat Mat Damage Taken 387 | . 1 386 Core 99 | . 1 98 Absorbed by Shields . | . . . Core Remaining (%) 99 | 100 99 . Volleys Fired 24 | . 1 23 Largest 1 | . 1 1 Hottest 30 | . 20 30 Shots Fired 24 | . 1 23 Gun 21 | . 1 20 Cannon . | . . . Launcher 3 | . . 3 Special . | . . . Kinetic 21 | . 1 20 Thermal . | . . . Explosive 3 | . . 3 Electromagnetic . | . . . Robot Hit Streak 8 | . 1 8 Robot Miss Streak 3 | . . 3 Penetration Max . | . . . Secondary Targets . | . . . Shots Hit Robots 13 | . 1 12 Core Hits 6 | . 1 5 Critical Hits . | . . . Critical Kills . | . . . Critical Parts Destroyed . | . . . Melee Attacks . | . . . Impact . | . . . Slashing . | . . . Piercing . | . . . Sneak Attacks . | . . . Combat Hostiles . | . . . Follow-up Attacks . | . . . Damage Inflicted 138 | . 16 122 Guns 135 | . 13 122 Cannons . | . . . Explosions . | . . . Melee . | . . . Ramming 3 | . 3 . Kinetic 135 | . 13 122 Thermal . | . . . Explosive . | . . . Electromagnetic . | . . . Impact . | . . . Slashing . | . . . Piercing . | . . . Highest Corruption . | . . . Average Corruption . | . . . Corruption Purged . | . . . Overload Shots . | . . . Overflow Damage 16 | . . 16 Projectiles . | . . . Explosions 16 | . . 16 Melee . | . . . Knockbacks . | . . . Impact . | . . . Kinetic . | . . . Secondary . | . . . Self-Inflicted Damage 104 | . 1 103 Shots 3 | . . 3 Rammed 1 | . 1 . Targets Rammed 1 | . 1 . Kicked . | . . . Crushed . | . . . Highest Temperature . | . . . Average Temperature . | . . . Received Heat Transfer 9 | . . 9 Siege Activations . | . . . Robots Corrupted . | . . . Combat Hostiles . | . . . Parts Fried . | . . . Impact Corruptions . | . . . Robots Melted . | . . . Combat Hostiles . | . . . Parts Melted . | . . . Heat Transferred . | . . . Parts Sabotaged . | . . . Parts Stolen . | . . . Parts Stripped . | . . . Power Chain Reactions . | . . . Missiles Intercepted . | . . . Alert | -11 -10 -9 ------- Run | Scr Mat Mat Peak Influence 180 | . 28 180 Average Influence 62 | . 8 94 Maximum Alert Level . | . . . Low Security (%) 100 | 100 100 100 Level 1 . | . . . Level 2 . | . . . Level 3 . | . . . Level 4 . | . . . Level 5 . | . . . High Security . | . . . Max Security . | . . . Squads Dispatched 1 | . . 1 Investigation . | . . . Extermination . | . . . Reinforcement 1 | . . 1 Assault . | . . . Garrison . | . . . Intercept . | . . . Construction Impeded . | . . . Haulers Reinforced . | . . . Stealth | -11 -10 -9 --------- Run | Scr Mat Mat Distress Signals . | . . . Communications Jammed . | . . . Distress Signals . | . . . Times Spotted 11 | . 1 10 Peak Tracking Total 8 | . . 8 Tactical Retreats 1 | . . 1 Traps | -11 -10 -9 ------- Run | Scr Mat Mat Traps Triggered . | . . . Indirectly . | . . . Trap Hack Attempts . | . . . Triggered . | . . . Disarmed . | . . . Reprogrammed . | . . . Reused . | . . . Traps Extracted . | . . . Installed . | . . . Triggered . | . . . Machines | -11 -10 -9 ---------- Run | Scr Mat Mat Machines Disabled 2 | . . 2 Max in Single Turn 2 | . . 2 Machines Sabotaged . | . . . Garrisons Compromised . | . . . Overloaded Fab Kills . | . . . Fab Network Shutdowns . | . . . Hacking | -11 -10 -9 --------- Run | Scr Mat Mat Machines Accessed 3 | . 1 2 Terminals 3 | . 1 2 Fabricators . | . . . Repair Stations . | . . . Recycling Units . | . . . Scanalyzers . | . . . Garrison Access . | . . . Total Hacks 5 | . 1 4 Successful 2 | . 1 1 Failed 3 | . . 3 Catastrophic 2 | . . 2 Database Lockouts . | . . . Manual 4 | . . 4 Terminals 5 | . 1 4 Fabricators . | . . . Repair Stations . | . . . Recycling Units . | . . . Scanalyzers . | . . . Garrison Access . | . . . Terminal Hacks 2 | . 1 1 Level Access Points 2 | . 1 1 Fabricator Hacks . | . . . Repair Station Hacks . | . . . Recycling Unit Hacks . | . . . Scanalyzer . | . . . Garrison Access Hacks . | . . . Unauthorized Hacks . | . . . Terminals . | . . . Fabricators . | . . . Repair Stations . | . . . Recycling Units . | . . . Scanalyzers . | . . . Garrison Access . | . . . Data Cores Recovered . | . . . Used . | . . . Hacking Detections 1 | . . 1 Full Trace Events . | . . . Feedback Events . | . . . Feedback Blocked . | . . . Robot Schematics Acquired . | . . . Robots Built . | . . . Matter . | . . . Time . | . . . Total Robot Build Rating . | . . . Part Schematics Acquired . | . . . Parts Built . | . . . Matter . | . . . Time . | . . . Total Part Build Rating . | . . . Parts Repaired . | . . . Time . | . . . Parts Recycled . | . . . Recycled Matter . | . . . Retrieved Matter . | . . . Retrieved Components . | . . . Parts Scanalyzed . | . . . Part Schematics Acquired . | . . . Parts Damaged . | . . . Bothacking | -11 -10 -9 ------------ Run | Scr Mat Mat Used RIF Installer . | . . . Robots Hacked . | . . . Non-combat . | . . . Combat . | . . . Robot Hacks Applied . | . . . Relay Couplers Released . | . . . Robots Rewired . | . . . Allies Hacked . | . . . Hacks Repelled . | . . . Allies | -11 -10 -9 -------- Run | Scr Mat Mat Total Allies . | . . . Largest Group . | . . . Highest-Rated Group . | . . . Highest-Rated Ally . | . . . Total Orders . | . . . Ally Attacks . | . . . Total Damage . | . . . Kills . | . . . Allies Corrupted . | . . . Allies Melted . | . . . Intel | -11 -10 -9 ------- Run | Scr Mat Mat Robot Analysis Total . | . . . Derelict Logs Recovered . | . . . Drone Launches . | . . . Drone Recoveries . | . . . Exploration | -11 -10 -9 ------------- Run | Scr Mat Mat Turns Passed 175 | 16 47 112 Spaces Moved 241 | 28 79 134 Core 164 | 28 79 57 Treads . | . . . Legs . | . . . Wheels . | . . . Hover . | . . . Flight 77 | . . 77 Fastest Speed 37 | 50 50 37 Average Speed 46 | 50 50 42 Slowest Speed 50 | 50 50 50 Overloaded Moves . | . . . Propulsion Burnouts . | . . . Robots Hopped 2 | . . 2 Cave-ins Triggered . | . . . Exploration Rate (%) 20 | 3 27 32 Regions Visited 2 Branch Regions . Pre-discovered Areas . | . . . Known Exits Taken 1 | . 1 . Unknown Exits Taken 1 | 1 . . Scrap Searched . | . . . Spaces Dug 21 | . . 21 Terrain Destroyed 21 | . . 21 Melee . | . . . Projectile . | . . . AOE 21 | . . 21 Actions | -11 -10 -9 --------- Run | Scr Mat Mat Total 277 | 29 84 164 Wait 6 | . 3 3 Move 235 | 27 78 130 Hop 2 | . . 2 Pick Up 2 | 1 1 . Fast Attach 4 | 1 . 3 Attach 2 | . . 2 Detach 1 | . . 1 Swap . | . . . Drop . | . . . Fire 24 | . 1 23 Melee . | . . . Ram 1 | . 1 . Kick . | . . . Crush . | . . . Escape Stasis . | . . . Rewire . | . . . Trap . | . . . Miscellaneous . | . . . Route ------- -11/Scrapyard -10/Materials (discovered 3 exits: *Mat x3) -9/Materials (discovered 4 exits: Mat x3 / [*Min]) History --------- Turn | Location | Event 4 | -11/Scrapyard | Discovered new exit (range 15) 17 | -11/Scrapyard | Entered Materials 23 | -10/Materials | Identified exit to Materials 64 | -10/Materials | Entered another Materials area 64 | -9/Materials | Evolved 2 slots: Propulsion x1, Utility x1 125 | -9/Materials | Discovered new exit (range 15) 139 | -9/Materials | Identified exit to Materials 176 | -9/Materials | Self-destructed Last Messages --------------- 00135_ K-01 Serf cleans the Machine. 00138_ K-01 Serf collects debris. 00139_ Connecting with Terminal... >>Access(Main) Found 3 level access points to Materials: (20,14) (90,20) (13,78) Map updated. 00142_ K-01 Serf collects debris. 00154_ Flight Unit destroyed. 00159_ K-01 Serf collects debris. 00159_ S-10 Pest destroyed. 00170_ Flight Unit destroyed. 00170_ Destroyed Flight Unit. 00170_ Atomic Centrifuge disabled. 00174_ Lgt. Assault Rifle destroyed. 00174_ Destroyed Lgt. Assault Rifle. 00174_ Grenade Launcher destroyed. 00174_ Destroyed Grenade Launcher. Map ----- +----------------------------------------------------+ | ???????????"""" # #? #########?????# | | ???????????""" =?## #####+## ####### " | | ??????????? ??# "" | | ??????????######???# < " | | ???????????????????# *%"""" | | ???????????????????# """" /##" "## | | ???????????????????# """" ##" !"| "## | | ???????????????????# ##"""""""## = | | ?????????????????? + ########### =% ## | | ?????????????????" # """" ##? ?????# #? | | ????????????????"" # """" # ??????# #? | | ?????????????? ?# """" # ???????# #? | | ?????????????#####?# /????????# ## | | ???????????????????# #????????# #/ | | ??????????????########+## #????????# # | | ??????????????# ## ##???????# # # | | ??????????????# """ [ ## #????????# # %/ | | ??????????????# """ ## ##???????+ # # | | ??????????????# """ + +???????# # # | | ??????????????? """ """ ## ##???????# ?# ## | | ??????????????? """ R" ###+######????####??# # | | ??????????????? """ # #??????????# # | | ??????????????? # """ #??????????# # | | ??????????????########### """ #??????????# # | | ?????????????????????## "" #??####????# # | | ?????????????????????# @ ## ? !???# # | | ?????????????????????# "" ## [[??# # | | ?????????????????????# "" ## [[ ?# # | | ?????????????????????# "" ## # # | | ?????????????????????# ## # # | | ?????????????????????### ####### / + | | ???????????????????????######?????# # # | | ????????????????????????????????????????????# #! | | ????????????????????????????????????????##### ## | | ????????????????????????????????? | | ????????????????????????????????? | | ????????????????????????????????? | | ????????????????????????????????? #######+######## | | ?????????????????????????????????????????????????? | | ?????????????????????????????????????????????????? | | ????????????????????????????????????????????????## | | ????????????????????????????????????????????????# | | ????????????????????????????????????????????????# | | ????????????????????????????????????????????????# | | ????????????????????????????????????????????????# | | ????????????????????????????????????????????????# | | ????????????????????????????????????????????????# | | ????????????????????????????????????????????????? | | ????????????????????????????????????????????????? | | ?????????????????????????????????????????????????# | +----------------------------------------------------+ Best States ------------- Heat Dissipation 28 Energy Generation 10 Energy Capacity 250 Matter Stores 300 Matter Capacity 300 Sight Range 16 Terrain Scan Density 10 Evasion (%) 62 Item Schematics ----------------- None Robot Schematics ------------------ None Fabricated ------------ Nothing Alien Tech Used ----------------- None Achievements -------------- None Challenges ------------ None Game ------ Seed LongswordMolecularExtractor Manual? 0 Play Time 00:05:33 Cumulative 119.2 hours Start 2020.06.07 @ 08:23:16 End 2020.06.07 @ 08:26:30 Sessions 1 Manual Loads 0 Difficulty Rogue Special Mode None Game No. 279 Rogue 271 Adventurer 8 Explorer 0 Win Type - Total 7 Types 4/0/2/1/0/0/0 Lore% 77 Gallery% 78 Achievement% 58 Wizard Run 0 Options --------- ASCII 0 Keyboard 0 Movement Mouse Keybinds 0 Fullscreen 1 Font 12/Smallcaps Map View 83x54 Tactical HUD 1 Map Filters NONE Filters NONE Steam 1 RUN: 012bbfc6-7599-49cb-9714-4a4dcb13b8e3